fUST/lending_fUST_20241017
["ID","MTS","AMOUNT","RATE_DAILY","PERIOD"]
[340391252,1729171839168,-108.29518593,0.000144,2]
[340391256,1729171839178,-1000.0,0.000144,2]
[340391259,1729171839188,-300.0,0.0001441,2]
[340391262,1729171839197,-300.0,0.0001441,2]
[340391264,1729171839208,-1518.23082512,0.00014411,2]
[340391282,1729171840982,-3586.51721726,0.00014411,2]
[340391285,1729171840992,-500.0,0.00014473,2]
[340391287,1729171841002,-500.97716606,0.00014473,2]
[340391288,1729171841012,-310.26493964,0.00014473,2]
[340391289,1729171841022,-0.88571824,0.00014473,2]
[340391290,1729171841037,-499.11428176,0.00014473,2]
[340391291,1729171841047,-501.05674957,0.00014473,2]
[340391292,1729171841057,-629.29,0.0001448,2]
[340391293,1729171841067,-494.68128692,0.00014489,2]
[340391294,1729171841076,-241.46198997,0.00014489,2]
[340391295,1729171841086,-16244.20959194,0.0001449,2]
[340391296,1729171841096,-12222.0372824,0.0001449,2]
[340391297,1729171841105,-2727.85076543,0.0001449,2]
[340391313,1729171844626,-2992.43341702,0.0001449,2]
[340391316,1729171844640,-45334.07147115,0.0001449,2]
[340391317,1729171844651,-47352.53890062,0.0001449,2]
[340391319,1729171844661,-195552.596519,0.0001449,2]
[340391320,1729171844671,-248912.92207717,0.0001449,2]
[340391339,1729171898279,178.571429,0.00013509,2]
[340391340,1729171898494,178.571429,0.00013626,2]
[340391341,1729171898754,178.571429,0.00013743,2]
[340391342,1729171899190,178.571429,0.00013861,2]
[340391343,1729171899261,178.571429,0.00013978,2]
[340391362,1729172354733,1471.9109115,0.00013436,2]
[340391365,1729172406782,171.689889,0.00013537,2]
[340391366,1729172407042,171.689889,0.00013678,2]
[340391367,1729172407355,171.689889,0.00013819,2]
[340391368,1729172407631,171.689889,0.0001396,2]
[340391395,1729172596219,215.7706354,0.00013699,2]
[340391477,1729172780757,159.0045514,0.00013699,2]
[340391478,1729172793138,-171.689889,0.00014101,2]
[340391479,1729172793163,-171.689889,0.00014242,2]
[340391480,1729172793187,-300.0,0.00014354,2]
[340391481,1729172793210,-5484.44718314,0.00014355,2]
[340391482,1729172793232,-2473.97364586,0.00014355,2]
[340391592,1729173040531,-1025.71086859,0.00014355,2]
[340391642,1729173043452,-6452.25242118,0.00014355,2]
[340391643,1729173043462,-239.49354595,0.00014361,2]
[340391645,1729173043471,-7632.25906112,0.00014361,2]
[340391647,1729173043480,-991.47,0.0001437,2]
[340391649,1729173043489,-300.0,0.00014389,2]
[340391651,1729173043499,-300.0,0.00014389,2]
[340391653,1729173043509,-749.61823257,0.0001439,2]
[340391655,1729173043519,-481.75133029,0.0001446,2]
[340391656,1729173043528,-49459.1339271,0.0001446,2]
[340391657,1729173043538,-11675.1375812,0.0001446,2]
[340391658,1729173043547,-12364.7834818,0.00014469,2]
[340391659,1729173043556,-2918.7843953,0.00014469,2]
[340391660,1729173043566,-12364.7834818,0.00014469,2]
[340391661,1729173043575,-2918.7843953,0.00014469,2]
[340391662,1729173043585,-1071.20513638,0.0001447,2]
[340391663,1729173043594,-12364.7834818,0.0001447,2]
[340391664,1729173043604,-2918.7843953,0.0001447,2]
[340391665,1729173043614,-291.44643043,0.0001447,2]
[340391666,1729173043623,-500.0,0.00014473,2]
[340391667,1729173043632,-500.0,0.00014473,2]
[340391668,1729173043641,-500.0,0.00014473,2]
[340391669,1729173043651,-172.58185452,0.00014473,2]
[340391670,1729173043661,-500.0,0.00014473,2]
[340391671,1729173043670,-501.92112414,0.00014473,2]
[340391672,1729173043680,-197.45155391,0.00014473,2]
[340391673,1729173043691,-999.60015994,0.00014479,2]
[340391674,1729173043701,-999.70008997,0.00014479,2]
[340391675,1729173043711,-567.09,0.00014479,2]
[340391676,1729173043721,-194.73133744,0.00014479,2]
[340391677,1729173043730,-500.0,0.00014479,2]
[340391678,1729173043740,-500.0,0.00014479,2]
[340391679,1729173043752,-500.0,0.00014479,2]
[340391680,1729173043764,-500.0,0.00014479,2]
[340391681,1729173043774,-500.0,0.00014479,2]
[340391682,1729173043784,-350.58662233,0.00014479,2]
[340391683,1729173043793,-500.0,0.00014479,2]
[340391684,1729173043804,-500.0,0.00014479,2]
[340391685,1729173043814,-500.0,0.00014479,2]
[340391686,1729173043823,-500.0,0.00014479,2]
[340391687,1729173043835,-500.0,0.00014479,2]
[340391688,1729173043844,-500.0,0.00014479,2]
[340391689,1729173043853,-500.0,0.00014479,2]
[340391690,1729173043862,-182.23977569,0.00014479,2]
[340391691,1729173043872,-500.0,0.00014479,2]
[340391692,1729173043881,-500.0,0.00014479,2]
[340391693,1729173043890,-500.0,0.00014479,2]
[340391694,1729173043899,-500.0,0.00014479,2]
[340391695,1729173043908,-500.0,0.00014479,2]
[340391696,1729173043918,-500.0,0.00014479,2]
[340391697,1729173043927,-186.91553063,0.00014479,2]
[340391698,1729173043936,-500.0,0.00014479,2]
[340391699,1729173043945,-500.0,0.00014479,2]
[340391700,1729173043954,-500.0,0.00014479,2]
[340391701,1729173043963,-500.0,0.00014479,2]
[340391702,1729173043973,-500.0,0.00014479,2]
[340391703,1729173043982,-500.0,0.00014479,2]
[340391704,1729173043991,-500.0,0.00014479,2]
[340391705,1729173044000,-500.0,0.00014479,2]
[340391706,1729173044009,-500.0,0.00014479,2]
[340391707,1729173044019,-500.0,0.00014479,2]
[340391708,1729173044029,-500.0,0.00014479,2]
[340391709,1729173044040,-500.0,0.00014479,2]
[340391710,1729173044053,-24729.5669636,0.0001448,2]
[340391711,1729173044064,-5837.5687906,0.0001448,2]
[340391712,1729173044075,-62831.005821,0.0001448,2]
[340391713,1729173044084,-179.56863,0.0001448,2]
[340391714,1729173044095,-179.56863,0.0001448,2]
[340391715,1729173044106,-726.533745,0.0001448,2]
[340391716,1729173044116,-250.286628,0.0001448,2]
[340391717,1729173044128,-250.286628,0.0001448,2]
[340391718,1729173044138,-726.533745,0.0001448,2]
[340391719,1729173044148,-151.0,0.0001448,2]
[340391720,1729173044159,-179.751542,0.0001448,2]
[340391721,1729173044168,-1215.792243,0.0001448,2]
[340391722,1729173044179,-1215.792243,0.0001448,2]
[340391723,1729173044188,-664.873561,0.0001448,2]
[340391724,1729173044198,-664.873561,0.0001448,2]
[340391725,1729173044208,-151.0,0.0001448,2]
[340391726,1729173044220,-298.493785,0.0001448,2]
[340391727,1729173044230,-752.604052,0.0001448,2]
[340391728,1729173044241,-752.604052,0.0001448,2]
[340391729,1729173044251,-151.0,0.0001448,2]
[340391730,1729173044262,-1025.323689,0.0001448,2]
[340391731,1729173044272,-1025.323689,0.0001448,2]
[340391732,1729173044281,-200.454524,0.0001448,2]
[340391733,1729173044291,-200.454524,0.0001448,2]
[340391734,1729173044301,-2219.600557,0.0001448,2]
[340391735,1729173044310,-2219.600557,0.0001448,2]
[340391736,1729173044322,-477.812165,0.0001448,2]
[340391737,1729173044332,-315.895349,0.0001448,2]
[340391738,1729173044341,-477.812165,0.0001448,2]
[340391739,1729173044352,-315.895349,0.0001448,2]
[340391740,1729173044361,-2428.345662,0.0001448,2]
[340391741,1729173044371,-2428.345662,0.0001448,2]
[340391742,1729173044381,-172.871581,0.0001448,2]
[340391743,1729173044391,-172.871581,0.0001448,2]
[340391744,1729173044401,-3733.232978,0.0001448,2]
[340391745,1729173044410,-399.264641,0.0001448,2]
[340391746,1729173044420,-3733.232978,0.0001448,2]
[340391747,1729173044430,-399.264641,0.0001448,2]
[340391748,1729173044440,-152.045827,0.0001448,2]
[340391749,1729173044451,-49459.1339271,0.0001448,2]
[340391750,1729173044461,-11675.1375812,0.0001448,2]
[340391751,1729173044472,-840.31,0.00014489,2]
[340391752,1729173044482,-500.0,0.00014489,2]
[340391753,1729173044493,-274.24102916,0.00014489,2]
[340391754,1729173044503,-218.01272258,0.00014489,2]
[340391755,1729173044513,-651.90004122,0.00014489,2]
[340391756,1729173044523,-524.59323369,0.00014489,2]
[340391757,1729173044533,-17597.8937246,0.0001449,2]
[340391758,1729173044549,-372.722291,0.0001449,2]
[340391759,1729173044567,-372.722291,0.0001449,2]
[340391760,1729173044583,-151.0,0.0001449,2]
[340391761,1729173044597,-151.0,0.0001449,2]
[340391762,1729173044611,-151.365838,0.0001449,2]
[340391763,1729173044627,-151.365838,0.0001449,2]
[340391764,1729173044642,-151.0,0.0001449,2]
[340391765,1729173044658,-151.0,0.0001449,2]
[340391766,1729173044673,-222.211131,0.0001449,2]
[340391767,1729173044689,-344.985723,0.0001449,2]
[340391768,1729173044705,-344.985723,0.0001449,2]
[340391769,1729173044718,-344.985723,0.0001449,2]
[340391770,1729173044731,-344.985723,0.0001449,2]
[340391771,1729173044745,-3595.783748,0.0001449,2]
[340391772,1729173044763,-3595.783748,0.0001449,2]
[340391773,1729173044779,-3595.783748,0.0001449,2]
[340391774,1729173044792,-3595.783748,0.0001449,2]
[340391775,1729173044804,-215.770894,0.0001449,2]
[340391776,1729173044822,-215.770894,0.0001449,2]
[340391777,1729173044838,-215.770894,0.0001449,2]
[340391778,1729173044855,-215.770894,0.0001449,2]
[340391779,1729173044867,-215.770894,0.0001449,2]
[340391780,1729173044882,-215.770894,0.0001449,2]
[340391781,1729173044898,-1291.181405,0.0001449,2]
[340391782,1729173044913,-1291.181405,0.0001449,2]
[340391783,1729173044925,-1291.181405,0.0001449,2]
[340391784,1729173044939,-1291.181405,0.0001449,2]
[340391785,1729173044953,-1291.181405,0.0001449,2]
[340391786,1729173044968,-1291.181405,0.0001449,2]
[340391787,1729173044986,-151.0,0.0001449,2]
[340391789,1729173044999,-153.059091,0.0001449,2]
[340391791,1729173045015,-359.218898,0.0001449,2]
[340391795,1729173045032,-359.218898,0.0001449,2]
[340391797,1729173045045,-359.218898,0.0001449,2]
[340391799,1729173045056,-210.789619,0.0001449,2]
[340391800,1729173045070,-210.789619,0.0001449,2]
[340391801,1729173045084,-359.218898,0.0001449,2]
[340391802,1729173045097,-210.789619,0.0001449,2]
[340391803,1729173045110,-359.218898,0.0001449,2]
[340391804,1729173045127,-359.218898,0.0001449,2]
[340391805,1729173045139,-210.789619,0.0001449,2]
[340391806,1729173045153,-210.789619,0.0001449,2]
[340391807,1729173045166,-210.789619,0.0001449,2]
[340391808,1729173045180,-158.736551,0.0001449,2]
[340391809,1729173045195,-158.736551,0.0001449,2]
[340391810,1729173045208,-158.736551,0.0001449,2]
[340391811,1729173045220,-158.736551,0.0001449,2]
[340391812,1729173045235,-158.32093,0.0001449,2]
[340391813,1729173045249,-151.0,0.0001449,2]
[340391814,1729173045262,-158.32093,0.0001449,2]
[340391815,1729173045275,-1453.631124,0.0001449,2]
[340391816,1729173045290,-158.736551,0.0001449,2]
[340391817,1729173045303,-158.32093,0.0001449,2]
[340391818,1729173045321,-1453.631124,0.0001449,2]
[340391819,1729173045334,-158.736551,0.0001449,2]
[340391820,1729173045346,-1453.631124,0.0001449,2]
[340391821,1729173045359,-151.0,0.0001449,2]
[340391822,1729173045371,-151.0,0.0001449,2]
[340391823,1729173045384,-1453.631124,0.0001449,2]
[340391824,1729173045399,-158.32093,0.0001449,2]
[340391825,1729173045411,-1453.631124,0.0001449,2]
[340391826,1729173045422,-158.32093,0.0001449,2]
[340391827,1729173045435,-151.636463,0.0001449,2]
[340391828,1729173045446,-1453.631124,0.0001449,2]
[340391829,1729173045459,-158.32093,0.0001449,2]
[340391830,1729173045471,-151.0,0.0001449,2]
[340391831,1729173045483,-151.0,0.0001449,2]
[340391832,1729173045495,-151.0,0.0001449,2]
[340391833,1729173045506,-151.0,0.0001449,2]
[340391834,1729173045519,-151.0,0.0001449,2]
[340391835,1729173045530,-151.0,0.0001449,2]
[340391836,1729173045542,-637.712232,0.0001449,2]
[340391837,1729173045554,-637.712232,0.0001449,2]
[340391838,1729173045569,-637.712232,0.0001449,2]
[340391839,1729173045581,-5626.014244,0.0001449,2]
[340391840,1729173045593,-5626.014244,0.0001449,2]
[340391841,1729173045604,-5626.014244,0.0001449,2]
[340391842,1729173045615,-637.712232,0.0001449,2]
[340391843,1729173045628,-637.712232,0.0001449,2]
[340391844,1729173045640,-637.712232,0.0001449,2]
[340391846,1729173045652,-5626.014244,0.0001449,2]
[340391847,1729173045664,-5626.014244,0.0001449,2]
[340391848,1729173045676,-5626.014244,0.0001449,2]
[340391849,1729173045688,-3000.0,0.0001449,2]
[340391850,1729173045701,-3000.0,0.0001449,2]
[340391851,1729173045712,-3000.0,0.0001449,2]
[340391852,1729173045723,-3000.0,0.0001449,2]
[340391853,1729173045736,-3000.0,0.0001449,2]
[340391854,1729173045748,-3000.0,0.0001449,2]
[340391855,1729173045763,-3000.0,0.0001449,2]
[340391856,1729173045776,-3000.0,0.0001449,2]
[340391857,1729173045787,-3000.0,0.0001449,2]
[340391858,1729173045800,-3000.0,0.0001449,2]
[340391859,1729173045812,-3000.0,0.0001449,2]
[340391860,1729173045827,-223.381009,0.0001449,2]
[340391861,1729173045841,-3504.863458,0.0001449,2]
[340391862,1729173045852,-3504.863458,0.0001449,2]
[340391863,1729173045865,-3504.863458,0.0001449,2]
[340391864,1729173045877,-3504.863458,0.0001449,2]
[340391865,1729173045889,-3504.863458,0.0001449,2]
[340391866,1729173045901,-3504.863458,0.0001449,2]
[340391867,1729173045913,-179.56863,0.0001449,2]
[340391868,1729173045925,-179.56863,0.0001449,2]
[340391869,1729173045937,-179.56863,0.0001449,2]
[340391870,1729173045949,-179.56863,0.0001449,2]
[340391871,1729173045961,-179.541392,0.0001449,2]
[340391872,1729173045973,-179.541392,0.0001449,2]
[340391873,1729173045985,-179.541392,0.0001449,2]
[340391874,1729173045999,-726.533745,0.0001449,2]
[340391875,1729173046011,-179.541392,0.0001449,2]
[340391876,1729173046025,-726.533745,0.0001449,2]
[340391877,1729173046038,-250.286628,0.0001449,2]
[340391878,1729173046051,-179.541392,0.0001449,2]
[340391879,1729173046064,-179.541392,0.0001449,2]
[340391880,1729173046076,-250.286628,0.0001449,2]
[340391881,1729173046089,-156.407132,0.0001449,2]
[340391882,1729173046103,-156.407132,0.0001449,2]
[340391883,1729173046115,-156.407132,0.0001449,2]
[340391884,1729173046127,-250.286628,0.0001449,2]
[340391885,1729173046142,-250.286628,0.0001449,2]
[340391886,1729173046154,-156.407132,0.0001449,2]
[340391887,1729173046166,-156.407132,0.0001449,2]
[340391888,1729173046182,-156.407132,0.0001449,2]
[340391889,1729173046195,-726.533745,0.0001449,2]
[340391890,1729173046209,-726.533745,0.0001449,2]
[340391891,1729173046222,-151.0,0.0001449,2]
[340391892,1729173046234,-151.0,0.0001449,2]
[340391893,1729173046245,-151.0,0.0001449,2]
[340391894,1729173046257,-815.343716,0.0001449,2]
[340391895,1729173046269,-815.343716,0.0001449,2]
[340391896,1729173046282,-815.343716,0.0001449,2]
[340391897,1729173046294,-815.343716,0.0001449,2]
[340391898,1729173046306,-1215.792243,0.0001449,2]
[340391899,1729173046319,-1215.792243,0.0001449,2]
[340391900,1729173046332,-815.343716,0.0001449,2]
[340391901,1729173046344,-815.343716,0.0001449,2]
[340391902,1729173046356,-1215.792243,0.0001449,2]
[340391903,1729173046368,-1215.792243,0.0001449,2]
[340391904,1729173046379,-664.873561,0.0001449,2]
[340391905,1729173046392,-664.873561,0.0001449,2]
[340391906,1729173046404,-664.873561,0.0001449,2]
[340391907,1729173046416,-664.873561,0.0001449,2]
[340391908,1729173046428,-151.0,0.0001449,2]
[340391909,1729173046440,-151.0,0.0001449,2]
[340391910,1729173046452,-752.604052,0.0001449,2]
[340391911,1729173046464,-752.604052,0.0001449,2]
[340391912,1729173046476,-752.604052,0.0001449,2]
[340391913,1729173046487,-752.604052,0.0001449,2]
[340391914,1729173046499,-49459.1339271,0.0001449,2]
[340391915,1729173046512,-220.740095,0.0001449,2]
[340391916,1729173046524,-1025.323689,0.0001449,2]
[340391917,1729173046538,-1025.323689,0.0001449,2]
[340391918,1729173046550,-1025.323689,0.0001449,2]
[340391919,1729173046562,-20431.4907671,0.0001449,2]
[340391920,1729173046574,-1025.323689,0.0001449,2]
[340391921,1729173046586,-1025.323689,0.0001449,2]
[340391922,1729173046597,-1025.323689,0.0001449,2]
[340391923,1729173046609,-200.454524,0.0001449,2]
[340391924,1729173046620,-200.454524,0.0001449,2]
[340391925,1729173046632,-200.454524,0.0001449,2]
[340391926,1729173046644,-200.454524,0.0001449,2]
[340391927,1729173046656,-2219.600557,0.0001449,2]
[340391928,1729173046669,-2219.600557,0.0001449,2]
[340391929,1729173046680,-2219.600557,0.0001449,2]
[340391930,1729173046692,-2219.600557,0.0001449,2]
[340391931,1729173046703,-2219.600557,0.0001449,2]
[340391933,1729173046714,-2219.600557,0.0001449,2]
[340391935,1729173046726,-477.812165,0.0001449,2]
[340391937,1729173046738,-477.812165,0.0001449,2]
[340391938,1729173046750,-477.812165,0.0001449,2]
[340391939,1729173046764,-477.812165,0.0001449,2]
[340391940,1729173046775,-315.895349,0.0001449,2]
[340391941,1729173046786,-315.895349,0.0001449,2]
[340391942,1729173046800,-315.895349,0.0001449,2]
[340391943,1729173046812,-315.895349,0.0001449,2]
[340391944,1729173046825,-477.812165,0.0001449,2]
[340391945,1729173046834,-477.812165,0.0001449,2]
[340391946,1729173046845,-477.812165,0.0001449,2]
[340391947,1729173046854,-315.895349,0.0001449,2]
[340391948,1729173046864,-477.812165,0.0001449,2]
[340391949,1729173046874,-315.895349,0.0001449,2]
[340391950,1729173046885,-315.895349,0.0001449,2]
[340391951,1729173046895,-315.895349,0.0001449,2]
[340391952,1729173047225,-2428.345662,0.0001449,2]
[340391953,1729173047259,-2428.345662,0.0001449,2]
[340391954,1729173047284,-2428.345662,0.0001449,2]
[340391955,1729173047294,-2428.345662,0.0001449,2]
[340391956,1729173047304,-2428.345662,0.0001449,2]
[340391957,1729173047314,-2428.345662,0.0001449,2]
[340391958,1729173047326,-2428.345662,0.0001449,2]
[340391959,1729173047335,-2428.345662,0.0001449,2]
[340391960,1729173047345,-172.871581,0.0001449,2]
[340391961,1729173047354,-172.871581,0.0001449,2]
[340391962,1729173047364,-172.871581,0.0001449,2]
[340391963,1729173047374,-172.871581,0.0001449,2]
[340391964,1729173047383,-3733.232978,0.0001449,2]
[340391965,1729173047391,-3733.232978,0.0001449,2]
[340391966,1729173047401,-3733.232978,0.0001449,2]
[340391967,1729173047410,-3733.232978,0.0001449,2]
[340391968,1729173047420,-399.264641,0.0001449,2]
[340391969,1729173047431,-399.264641,0.0001449,2]
[340391970,1729173047441,-399.264641,0.0001449,2]
[340391971,1729173047450,-399.264641,0.0001449,2]
[340391972,1729173047460,-3733.232978,0.0001449,2]
[340391973,1729173047471,-3733.232978,0.0001449,2]
[340391974,1729173047481,-3733.232978,0.0001449,2]
[340391975,1729173047490,-3733.232978,0.0001449,2]
[340391976,1729173047500,-399.264641,0.0001449,2]
[340391977,1729173047511,-399.264641,0.0001449,2]
[340391978,1729173047520,-399.264641,0.0001449,2]
[340391979,1729173047531,-399.264641,0.0001449,2]
[340391980,1729173047540,-151.0,0.0001449,2]
[340391981,1729173047550,-151.0,0.0001449,2]
[340391982,1729173047560,-272.519933,0.0001449,2]
[340391983,1729173047571,-345.726793,0.0001449,2]
[340391984,1729173047581,-345.726793,0.0001449,2]
[340391985,1729173047590,-345.726793,0.0001449,2]
[340391986,1729173047600,-345.726793,0.0001449,2]
[340391987,1729173047610,-345.726793,0.0001449,2]
[340391988,1729173047620,-345.726793,0.0001449,2]
[340391989,1729173047630,-345.726793,0.0001449,2]
[340391990,1729173047640,-345.726793,0.0001449,2]
[340391991,1729173047650,-50965.25047568,0.000145,2]
[340391992,1729173047660,-86607.75137736,0.000145,2]
[340391993,1729173047677,-33656.77279834,0.000145,2]
[340391994,1729173047693,-1707.9109115,0.000145,2]
[340392000,1729173048141,-955.755623,0.000145,2]
[340392027,1729173391135,383.381323,0.00013699,2]
[340392037,1729173482318,480.6425608,0.00013483,2]
[340392039,1729173494328,1877.5637237,0.00013592,2]
[340392041,1729173518709,2536.9950002,0.00013477,2]
[340392472,1729173786284,500.0,0.00027,60]
[340392476,1729173786611,500.0,0.00027,60]
[340392481,1729173787322,500.0,0.00027,60]
[340392483,1729173787405,500.0,0.00027,60]
[340392484,1729173787517,500.0,0.00027,60]
[340392485,1729173787592,500.0,0.00027,60]
[340392486,1729173787732,500.0,0.00027,60]
[340392488,1729173787828,500.0,0.00027,60]
[340392489,1729173788043,500.0,0.00027,60]
[340392491,1729173788162,500.0,0.00027,60]
[340392493,1729173788414,500.0,0.00027,60]
[340392494,1729173788489,500.0,0.00027,60]
[340392496,1729173788757,500.0,0.00027,60]
[340392497,1729173788803,500.0,0.00027,60]
[340392499,1729173789084,563.12874465,0.00027,60]
[340392500,1729173789138,264.54830114,0.00027,60]
[340392505,1729173789669,1240.33,0.00027,60]
[340392508,1729173789975,500.0,0.00027,60]
[340392510,1729173790014,1240.33,0.00027,60]
[340392513,1729173790283,500.0,0.00027,60]
[340392515,1729173790352,1240.33,0.00027,60]
[340392516,1729173790396,525.59571461,0.00027,60]
[340392520,1729173790747,1240.33,0.00027,60]
[340392524,1729173790899,500.0,0.00027,60]
[340392526,1729173791075,1240.33,0.00027,60]
[340392528,1729173791251,500.0,0.00027,60]
[340392533,1729173791556,500.0,0.00027,60]
[340392537,1729173791736,1240.33,0.00027,60]
[340392542,1729173791865,500.0,0.00027,60]
[340392546,1729173792016,4801.37,0.00027,60]
[340392551,1729173792195,500.0,0.00027,60]
[340392554,1729173792302,1240.33,0.00027,60]
[340392556,1729173792391,4801.37,0.00027,60]
[340392560,1729173792536,579.90446784,0.00027,60]
[340392562,1729173792636,1240.33,0.00027,60]
[340392564,1729173792707,4801.37,0.00027,60]
[340392569,1729173792947,1240.33,0.00027,60]
[340392571,1729173793036,4801.37,0.00027,60]
[340392575,1729173793256,1240.33,0.00027,60]
[340392577,1729173793343,4801.37,0.00027,60]
[340392581,1729173793571,1240.33,0.00027,60]
[340392582,1729173793650,4801.37,0.00027,60]
[340392586,1729173793881,1240.33,0.00027,60]
[340392588,1729173793958,4801.37,0.00027,60]
[340392593,1729173794228,1240.33,0.00027,60]
[340392595,1729173794293,4801.37,0.00027,60]
[340392599,1729173794532,1240.33,0.00027,60]
[340392601,1729173794611,4801.37,0.00027,60]
[340392604,1729173794872,1240.33,0.00027,60]
[340392606,1729173794937,4801.37,0.00027,60]
[340392607,1729173795068,500.0,0.00027,60]
[340392610,1729173795209,1240.33,0.00027,60]
[340392611,1729173795326,4801.37,0.00027,60]
[340392612,1729173795397,500.0,0.00027,60]
[340392614,1729173795534,500.0,0.00027,60]
[340392615,1729173795573,1240.33,0.00027,60]
[340392616,1729173795642,4801.37,0.00027,60]
[340392617,1729173795685,1719.55,0.00027,60]
[340392619,1729173795943,500.0,0.00027,60]
[340392620,1729173796026,1240.33,0.00027,60]
[340392622,1729173796083,4801.37,0.00027,60]
[340392623,1729173796124,1719.55,0.00027,60]
[340392624,1729173796178,500.0,0.00027,60]
[340392626,1729173796216,500.0,0.00027,60]
[340392628,1729173796265,1240.33,0.00027,60]
[340392629,1729173796322,1719.55,0.00027,60]
[340392630,1729173796360,4801.37,0.00027,60]
[340392632,1729173796407,500.0,0.00027,60]
[340392633,1729173796443,500.0,0.00027,60]
[340392634,1729173796495,1240.33,0.00027,60]
[340392635,1729173796591,1719.55,0.00027,60]
[340392636,1729173796633,4801.37,0.00027,60]
[340392637,1729173796702,500.0,0.00027,60]
[340392638,1729173796743,500.0,0.00027,60]
[340392639,1729173796783,1240.33,0.00027,60]
[340392640,1729173796937,1719.55,0.00027,60]
[340392641,1729173797011,500.0,0.00027,60]
[340392643,1729173797056,4801.37,0.00027,60]
[340392646,1729173797107,500.0,0.00027,60]
[340392648,1729173797156,1240.33,0.00027,60]
[340392651,1729173797254,1719.55,0.00027,60]
[340392664,1729173797769,500.0,0.00027,60]
[340392666,1729173797810,4801.37,0.00027,60]
[340392668,1729173797849,1240.33,0.00027,60]
[340392669,1729173797896,500.0,0.00027,60]
[340392671,1729173797966,415.39740158,0.00027,60]
[340392673,1729173798008,1240.49900709,0.00027,60]
[340392674,1729173798048,500.0,0.00027,60]
[340392675,1729173798095,1719.55,0.00027,60]
[340392677,1729173798148,4801.37,0.00027,60]
[340392679,1729173798189,500.0,0.00027,60]
[340392682,1729173798382,4801.37,0.00027,60]
[340392684,1729173798454,154.91871825,0.00027,60]
[340392687,1729173798559,1719.55,0.00027,60]
[340392689,1729173798696,4801.37,0.00027,60]
[340392692,1729173798852,1719.55,0.00027,60]
[340392695,1729173799020,4801.37,0.00027,60]
[340392697,1729173799154,1719.55,0.00027,60]
[340392699,1729173799195,1124.4,0.00027,60]
[340392703,1729173799350,4801.37,0.00027,60]
[340392706,1729173799499,1124.4,0.00027,60]
[340392708,1729173799541,1719.55,0.00027,60]
[340392711,1729173799667,4801.37,0.00027,60]
[340392714,1729173799814,1124.4,0.00027,60]
[340392716,1729173799991,4801.41978202,0.00027,60]
[340392718,1729173800071,500.0,0.00027,60]
[340392721,1729173800134,314.8616243,0.00027,60]
[340392722,1729173800178,1124.4,0.00027,60]
[340392724,1729173800355,1719.55,0.00027,60]
[340392726,1729173800476,1124.4,0.00027,60]
[340392729,1729173800671,1719.55,0.00027,60]
[340392730,1729173800709,500.0,0.00027,60]
[340392731,1729173800796,1124.4,0.00027,60]
[340392735,1729173801008,1719.55,0.00027,60]
[340392736,1729173801047,500.0,0.00027,60]
[340392738,1729173801120,1124.4,0.00027,60]
[340392741,1729173801336,1719.55,0.00027,60]
[340392743,1729173801617,494.40469038,0.00027,60]